bitfinex/quotes_ETHUSD_20250605
["timestamp","ask_amount","ask_price","bid_price","bid_amount"]
[1749144450873,6.647,2568.6,2568.5,3.89332295]
[1749144451098,10.647,2568.6,2568.5,3.89332295]
[1749144451759,11.01121931,2568.6,2568.5,3.89332295]
[1749144452339,10.647,2568.6,2568.5,3.89332295]
[1749144452550,6.647,2568.6,2568.5,3.89332295]
[1749144453559,0.36425809,2568.6,2568.4,4.44345256]
[1749144453762,10.0,2568.8,2568.2,3.8937696]
[1749144453763,40.0,2568.8,2568.6,3.89309305]
[1749144453940,41.01030176,2568.7,2568.6,3.89309305]
[1749144454150,30.0,2568.6,2568.5,3.89318526]
[1749144454799,30.0,2568.6,2568.5,4.44318526]
[1749144454977,0.3641415,2568.6,2568.5,5.27683814]
[1749144455297,4.0,2568.7,2568.6,4.44317137]
[1749144455443,6.645,2568.7,2568.6,4.44317137]
[1749144456503,7.0090598,2568.7,2568.6,4.44317137]
[1749144456642,6.645,2568.7,2568.6,4.44317137]
[1749144456983,0.3639384,2568.7,2568.6,4.44317137]
[1749144457146,37.928537,2568.9,2568.8,3.89286826]
[1749144457342,30.0,2568.8,2568.2,16.0]
[1749144457543,30.0,2568.8,2568.6,3.89310318]
[1749144457851,30.0,2568.6,2568.4,3.89334411]
[1749144458073,36.644,2568.5,2568.4,3.89334411]
[1749144458278,37.0078887,2568.5,2568.4,3.89334411]
[1749144458475,37.0078745,2568.5,2568.3,3.89354715]
[1749144458685,30.0,2568.4,2568.3,3.89354715]
[1749144459064,30.0,2568.4,2568.2,3.89373018]
[1749144459785,40.0,2568.2,2568.1,4.44379613]
[1749144459948,36.643,2568.2,2568.1,4.44379613]
[1749144460979,37.00673647,2568.2,2568.1,4.44379613]
[1749144461176,37.00673647,2568.2,2567.6,16.0]
[1749144461177,37.81433647,2568.2,2567.2,2.54946025]
[1749144461377,30.0,2568.0,2567.7,3.89441412]
[1749144461608,7.0066722,2567.9,2567.8,3.89438429]
[1749144461903,6.643,2567.9,2567.8,3.89438429]
[1749144462113,40.0,2568.0,2567.9,3.89421456]
[1749144462271,36.643,2568.0,2567.9,3.89421456]
[1749144462469,4.36359698,2568.0,2567.9,5.01983216]
[1749144462707,10.643,2568.0,2567.9,5.01983216]
[1749144463280,40.643,2568.0,2567.9,3.89421456]
[1749144463479,10.643,2568.0,2567.9,4.44421456]
[1749144463873,6.643,2568.0,2567.9,4.44421456]
[1749144464720,30.0,2568.3,2568.1,3.89392936]
[1749144464876,30.0,2568.3,2568.2,3.89377774]
[1749144465210,16.642,2568.3,2568.2,3.89377774]
[1749144465674,16.642,2568.3,2568.1,4.4438556]
[1749144466069,30.0,2568.2,2567.6,0.487]
[1749144466296,4.73173903,2568.0,2567.6,0.487]
[1749144466506,4.0,2568.1,2568.0,3.89408099]
[1749144466721,4.0,2568.1,2568.0,5.70990952]
[1749144466916,30.0,2568.5,2568.4,3.89339154]
[1749144467112,37.0055459,2568.5,2568.1,0.55]
[1749144467299,6.642,2568.5,2568.4,3.89347453]
[1749144467697,30.0,2568.8,2568.7,3.89301981]
[1749144467905,37.37770528,2568.8,2568.7,3.89301981]
[1749144468104,30.3636199,2568.8,2568.7,3.89301981]
[1749144468311,37.0046199,2568.8,2568.7,3.89301981]
[1749144468815,36.641,2568.8,2568.7,3.89301981]
[1749144469123,30.0,2568.8,2568.7,5.2216361]
[1749144469292,7.928537,2568.9,2568.8,4.44286826]
[1749144469493,14.569537,2568.9,2568.8,4.44286826]
[1749144469919,18.569537,2568.9,2568.8,4.44286826]
[1749144470097,18.568537,2568.9,2568.8,5.74363301]
[1749144470308,11.928537,2568.9,2568.8,6.23063301]
[1749144470510,11.928537,2568.9,2568.8,24.04663301]
[1749144470841,7.928537,2568.9,2568.8,24.04663301]
[1749144471194,14.568537,2568.9,2568.8,24.04663301]
[1749144472526,7.928537,2568.9,2568.8,24.04663301]
[1749144472737,14.568537,2568.9,2568.8,24.04663301]
[1749144473960,7.928537,2568.9,2568.8,24.04663301]
[1749144476597,0.99768409,2568.9,2568.8,24.04663301]
[1749144478950,0.99768409,2568.9,2568.8,22.23063301]
[1749144481643,0.99768409,2568.9,2568.8,32.0653199]
[1749144486424,0.99768409,2568.9,2568.8,32.26026134]
[1749144487212,0.02,2569.9,2569.8,4.44135341]
[1749144487412,0.02,2569.9,2569.8,22.25635341]
[1749144487618,0.02,2569.9,2569.8,22.74335341]
[1749144488053,0.02,2569.9,2569.8,31.14935341]
[1749144488253,0.02,2569.9,2569.8,33.3203447]
[1749144489460,7.948537,2570.9,2570.8,4.43983973]
[1749144489617,14.578537,2570.9,2570.8,4.43983973]
[1749144489813,7.948537,2570.9,2570.8,20.43983973]
[1749144490018,7.948537,2570.9,2570.8,30.76152662]
[1749144490215,7.948537,2570.9,2570.8,21.70545602]
[1749144492639,7.948537,2570.9,2570.8,31.54014291]
[1749144493359,7.948537,2570.9,2570.8,31.93558554]
[1749144494063,7.948537,2570.9,2570.8,33.75058554]
[1749144502757,7.948537,2570.9,2570.8,22.10089865]
[1749144502957,14.570537,2570.9,2570.8,20.28528236]
[1749144503127,14.570537,2570.9,2570.8,20.83528236]
[1749144506532,14.568537,2570.9,2570.8,20.83528236]
[1749144507376,7.948537,2570.9,2570.8,20.83528236]
[1749144508037,7.948537,2570.9,2570.8,21.32228236]
[1749144508371,7.948537,2570.9,2570.8,23.4016634]
[1749144512567,7.948537,2570.9,2570.8,22.9146634]
[1749144512771,7.948537,2570.9,2570.8,22.3646634]
[1749144512937,7.948537,2570.9,2570.8,22.9146634]
[1749144517773,7.948537,2570.9,2570.8,29.5306634]
[1749144522574,7.948537,2570.9,2570.8,22.9146634]
[1749144522781,7.948537,2570.9,2570.8,24.7216634]
[1749144524150,7.948537,2570.9,2570.8,25.2086634]
[1749144524512,7.79576047,2570.9,2570.8,25.2086634]
[1749144524684,6.45576047,2570.9,2570.8,29.92725842]
[1749144524895,6.45576047,2570.9,2570.8,25.2086634]
[1749144525499,6.09576047,2570.9,2570.8,25.2086634]
[1749144527056,6.09576047,2570.9,2570.8,29.92725842]
[1749144527254,5.83986047,2570.9,2570.8,29.92725842]
[1749144527669,5.83986047,2570.9,2570.8,36.53925842]
[1749144529781,5.47986047,2570.9,2570.8,36.53925842]
[1749144530294,3.47986047,2570.9,2570.8,36.53925842]
[1749144534070,3.13986047,2570.9,2570.8,41.25785344]
[1749144535009,2.58986047,2570.9,2570.8,41.25785344]
[1749144535311,2.33196047,2570.9,2570.8,41.25785344]
[1749144535673,0.61384118,2570.9,2570.8,41.25785344]
[1749144535876,0.824,2571.7,2571.6,4.43862964]
[1749144536071,0.824,2571.7,2571.6,27.40208762]
[1749144536818,0.02,2571.9,2571.6,27.40208762]
[1749144537021,0.02,2571.9,2571.8,25.15692226]
[1749144539016,0.02,2571.9,2571.8,25.34873099]
[1749144540289,0.02,2571.9,2571.8,30.06732601]
[1749144540491,0.7831,2572.8,2572.7,20.43696699]
[1749144540701,0.7831,2572.8,2572.7,26.95656201]
[1749144541092,0.02,2572.9,2572.8,20.43681592]
[1749144547707,0.02,2572.9,2572.8,19.88681592]
[1749144548142,0.02,2572.9,2572.8,20.43681592]
[1749144555043,0.02,2572.9,2572.8,22.23681592]
[1749144557927,0.02,2572.9,2572.8,20.43681592]
[1749144558111,0.02,2572.9,2572.8,22.23081592]
[1749144558312,0.02,2572.9,2572.8,20.43681592]
[1749144558524,0.02,2572.9,2572.8,22.23081592]
[1749144560955,0.02,2572.9,2572.8,19.88681592]
[1749144561122,0.7767,2572.9,2572.8,19.88681592]
[1749144561629,7.3737,2572.9,2572.8,3.88681592]
[1749144561815,7.3737,2572.9,2572.8,19.88681592]
[1749144562449,8.11107,2572.9,2572.8,19.88681592]
[1749144563948,0.7767,2572.9,2572.8,19.88681592]
[1749144564459,7.3727,2572.9,2572.8,19.88681592]
[1749144566057,7.3727,2572.9,2572.8,3.88681592]
[1749144567163,0.8226,2572.8,2572.5,16.0]
[1749144567374,0.8226,2572.8,2572.7,3.88696699]
[1749144571067,10.0,2572.8,2572.7,3.88696699]
[1749144571261,0.7683,2572.8,2572.7,3.88696699]
[1749144571467,10.7683,2572.8,2572.7,3.88696699]
[1749144573676,0.7683,2572.8,2572.7,19.88696699]
[1749144574389,1.50673,2572.8,2572.7,19.88696699]
[1749144575840,0.7683,2572.8,2572.7,19.88696699]
[1749144577393,10.7683,2572.8,2572.7,19.88696699]
[1749144577686,10.7683,2572.8,2572.7,3.88696699]
[1749144579673,30.7683,2572.8,2572.7,3.88696699]
[1749144583760,37.3593,2572.8,2572.7,3.88696699]
[1749144587765,37.3573,2572.8,2572.7,3.88696699]
[1749144588289,37.72077181,2572.8,2572.7,3.88696699]
[1749144588669,37.3573,2572.8,2572.7,3.88696699]
[1749144589965,37.72114625,2572.8,2572.7,3.88696699]
[1749144590163,37.3573,2572.8,2572.7,3.88696699]
[1749144591185,37.72114051,2572.8,2572.7,3.88696699]
[1749144591357,37.7211426,2572.8,2572.7,3.88696699]
[1749144591560,37.3573,2572.8,2572.7,3.88696699]
[1749144591757,37.72114248,2572.8,2572.7,3.88696699]
[1749144591957,37.72114487,2572.8,2572.7,3.88696699]
[1749144592214,37.3573,2572.8,2572.7,3.88696699]
[1749144592779,37.72114461,2572.8,2572.7,3.88696699]
[1749144593496,37.3573,2572.8,2572.7,3.88696699]
[1749144594767,37.71918323,2572.8,2572.7,3.88696699]
[1749144594970,37.71918155,2572.8,2572.7,3.88696699]
[1749144595189,37.3553,2572.8,2572.7,3.88696699]
[1749144596321,37.71941225,2572.8,2572.7,3.88696699]
[1749144596521,38.08354308,2572.8,2572.7,3.88696699]
[1749144596726,37.3553,2572.8,2572.7,3.88696699]
[1749144597017,38.08356387,2572.8,2572.7,3.88696699]
[1749144597218,37.3553,2572.8,2572.7,3.88696699]
[1749144597575,37.71942897,2572.8,2572.7,3.88696699]
[1749144597890,37.3553,2572.8,2572.7,3.88696699]
[1749144598278,38.08355683,2572.8,2572.7,3.88696699]
[1749144598479,38.08355814,2572.8,2572.7,3.88696699]
[1749144598719,38.08355979,2572.8,2572.7,3.88696699]
[1749144598878,37.3553,2572.8,2572.7,3.88696699]
[1749144599075,37.7194343,2572.8,2572.7,3.88696699]
[1749144599390,38.45692692,2572.8,2572.7,3.88696699]
[1749144599574,38.08393004,2572.8,2572.7,3.88696699]
[1749144599776,38.4569267,2572.8,2572.7,3.88696699]
[1749144600217,30.0,2572.7,2572.6,3.88709057]
[1749144600383,30.8144,2572.6,2572.5,3.88720158]
[1749144600583,37.7637097,2572.6,2572.5,3.88720158]
[1749144600806,37.7724896,2572.6,2572.5,3.88720158]
[1749144601127,30.02,2572.9,2572.8,3.88681592]
[1749144601289,30.02,2572.9,2572.7,3.88693371]
[1749144601290,44.86234033,2572.9,2572.7,3.88693371]
[1749144601492,30.0,2572.7,2572.4,3.8872792]
[1749144601792,14.12497716,2572.9,2572.4,3.8872792]
[1749144601793,30.0,2572.5,2572.4,3.88728376]
[1749144601989,30.36432442,2572.5,2572.3,3.88750273]
[1749144602232,40.85792382,2572.4,2572.2,3.88764135]
[1749144602370,30.7531,2572.3,2572.2,3.88764135]
[1749144602575,30.0,2572.2,2572.1,3.8877587]
[1749144602789,30.767,2572.1,2572.0,3.88797592]
[1749144603202,37.71540163,2572.1,2572.0,3.88797592]
[1749144603714,37.351,2572.1,2572.0,3.88797592]
[1749144604284,37.71540025,2572.1,2572.0,3.88797592]
[1749144604483,37.351,2572.1,2572.0,3.88797592]
[1749144604902,37.71540079,2572.1,2572.0,3.88797592]
[1749144605120,37.71543768,2572.1,2572.0,3.88797592]
[1749144605318,37.351,2572.1,2572.0,3.88797592]
[1749144606206,41.0861,2572.1,2572.0,3.88797592]
[1749144606393,30.0,2572.0,2571.3,2.275]
[1749144606596,34.71375457,2571.7,2571.6,3.88850057]
[1749144606796,36.583,2571.7,2571.6,3.88850057]
[1749144607204,41.29675457,2571.7,2571.4,3.88891417]
[1749144607405,30.7915,2571.6,2571.5,3.88878086]
[1749144607807,7.7351,2572.1,2571.7,3.88847843]
[1749144607808,0.8258,2572.0,2571.7,3.88847843]
[1749144608029,30.8258,2572.2,2572.1,3.88787372]
[1749144608224,1.788,2572.7,2572.3,3.88757143]
[1749144608525,30.0,2572.7,2572.6,3.88711809]
[1749144608690,36.582,2572.7,2572.6,3.88711809]
[1749144608890,6.582,2572.7,2572.6,3.88711809]
[1749144609090,10.582,2572.7,2572.6,3.88711809]
[1749144609315,42.98330546,2572.7,2572.0,4.37490968]
[1749144609521,4.0,2572.7,2572.6,3.88711809]
[1749144609794,10.583,2572.7,2572.6,3.88711809]
[1749144610016,40.583,2572.7,2572.6,3.88711809]
[1749144610327,30.0,2572.6,2572.4,3.88735772]
[1749144610499,33.90091672,2572.5,2572.4,3.88735772]
[1749144610713,30.0,2572.5,2572.4,3.88735772]
[1749144612938,36.582,2572.5,2572.4,3.88735772]
[1749144613450,37.3599,2572.5,2572.4,3.88735772]
[1749144615043,37.4099,2572.5,2572.4,3.88735772]
[1749144616842,37.4099,2572.5,2572.3,3.88754336]
[1749144617041,30.0,2572.3,2572.0,3.887957]
[1749144617246,12.10675457,2572.2,2572.1,3.88787372]
[1749144617417,42.10675457,2572.2,2572.1,3.88787372]
[1749144618816,35.52675457,2572.2,2572.1,3.88787372]
[1749144619018,42.10575457,2572.2,2572.1,3.88787372]
[1749144619215,0.8014,2572.6,2572.5,3.88721171]
[1749144619435,46.0161556,2572.6,2572.5,3.88721171]
[1749144619629,38.70231672,2572.6,2572.5,3.88721171]
[1749144619854,34.8014,2572.6,2572.5,3.88721171]
[1749144620058,41.3804,2572.6,2572.5,3.88721171]
[1749144620541,40.579,2572.6,2572.5,3.88721171]
[1749144621165,36.579,2572.6,2572.5,3.88721171]
[1749144621358,30.0,2572.7,2572.6,3.88711809]
[1749144621661,40.578,2572.7,2572.6,3.88711809]
[1749144622045,4.0,2572.7,2572.6,3.88711809]
[1749144622363,10.578,2572.7,2572.6,3.88711809]
[1749144622565,17.9,2572.8,2572.7,3.88696699]
[1749144622856,6.578,2572.8,2572.7,3.88696699]
[1749144624267,36.578,2572.8,2572.7,3.88696699]
[1749144629647,30.0,2572.8,2572.7,3.88696699]
[1749144630040,0.02,2572.9,2572.7,3.88696699]
[1749144630041,0.02,2572.9,2572.8,3.88681592]
[1749144630363,6.595,2572.9,2572.8,3.88681592]
[1749144630854,6.595,2572.9,2572.7,0.82610851]
[1749144631057,30.0,2572.8,2572.4,0.487]
[1749144631396,30.0,2572.6,2572.5,3.88720531]
[1749144631833,30.0,2572.6,2572.4,3.88738784]
[1749144632033,6.574,2572.5,2572.4,3.88728249]
[1749144634783,0.798,2572.8,2572.7,3.88696699]
[1749144635084,41.371,2572.8,2572.7,3.88696699]
[1749144635473,34.798,2572.8,2572.7,3.88696699]
[1749144635679,41.371,2572.8,2572.7,3.88696699]
[1749144635890,45.27191672,2572.8,2572.7,3.88696699]
[1749144637751,4.0,2572.8,2572.7,3.88696699]
[1749144638093,4.0,2572.8,2572.7,4.37396699]
[1749144638258,0.02,2572.9,2572.8,3.88681592]
[1749144638457,6.592,2572.9,2572.8,3.88681592]
[1749144639951,0.02,2572.9,2572.8,3.88681592]
[1749144640190,6.592,2572.9,2572.8,3.88681592]
[1749144640497,0.02,2572.9,2572.8,22.13860285]
[1749144647946,6.588,2572.9,2572.8,22.13860285]
[1749144648464,6.588,2572.9,2572.8,3.88681592]
[1749144648754,6.588,2572.9,2572.8,19.88681592]
[1749144651014,0.02,2572.9,2572.8,20.43681592]
[1749144651237,0.02,2572.9,2572.8,20.92381592]
[1749144651544,0.02,2572.9,2572.8,24.02040285]
[1749144658733,0.02,2572.9,2572.8,8.75840285]
[1749144659057,0.02,2572.9,2572.8,3.88681592]
[1749144659356,30.02,2572.9,2572.8,3.88681592]
[1749144659660,30.02,2572.9,2572.7,3.88696699]
[1749144659661,30.0,2572.8,2572.7,3.88696699]
[1749144659862,37.3657,2572.8,2572.7,3.88696699]
[1749144660161,41.26561672,2572.8,2572.7,3.88696699]
[1749144661569,40.0,2572.6,2571.7,3.88847843]
[1749144661770,40.0,2572.6,2572.5,3.88726919]
[1749144661771,0.8027,2572.6,2572.5,3.88726919]
[1749144661955,34.70361672,2572.6,2572.5,3.88726919]
[1749144662279,34.70361672,2572.6,2572.1,3.88777248]
[1749144662280,0.7755,2572.4,2572.1,3.88777248]
[1749144662424,0.7755,2572.4,2571.6,1.775]
[1749144662425,0.7755,2572.2,2571.6,1.775]
[1749144662764,30.0,2572.1,2572.0,3.88795335]
[1749144662963,33.73375,2572.1,2572.0,3.88795335]
[1749144663644,33.73375,2572.1,2571.8,3.88832571]
[1749144663645,30.0,2572.0,2571.8,3.88832571]
[1749144663965,6.562,2571.9,2571.8,3.88832571]
[1749144664266,0.7575,2572.1,2572.0,3.88802488]
[1749144664561,7.3195,2572.1,2572.0,3.88802488]
[1749144665164,37.3195,2572.1,2572.0,3.88802488]
[1749144665337,37.3195,2572.1,2571.1,4.37625523]
[1749144665338,40.0,2571.8,2571.1,0.487]
[1749144665543,6.562,2571.7,2571.6,3.88862964]
[1749144666066,36.562,2571.7,2571.6,3.88862964]
[1749144666272,30.8175,2571.6,2571.5,3.88870225]
[1749144666468,30.0,2571.5,2571.3,3.8890313]
[1749144666838,30.0,2571.5,2571.4,3.88893209]
[1749144667489,30.0,2571.5,2571.3,3.88901633]
[1749144667694,33.44520877,2571.4,2571.3,3.88901633]
[1749144669370,30.0,2571.3,2571.2,3.88923459]
[1749144669594,36.562,2571.3,2571.2,3.88923459]
[1749144671588,36.562,2571.3,2570.7,3.88985053]
[1749144671889,30.0,2571.3,2571.2,3.88923459]
[1749144672212,7.9,2572.0,2571.2,3.88923459]
[1749144672213,30.0,2571.8,2571.7,3.88842077]
[1749144672372,30.0,2571.8,2571.2,3.88917206]
[1749144672373,40.0,2571.6,2571.2,3.88915769]
[1749144672571,40.0,2571.6,2570.6,0.487]
[1749144672572,40.0,2571.3,2570.6,0.487]
[1749144672771,36.562,2571.2,2571.1,3.88931503]
[1749144676432,30.0,2571.1,2570.9,3.88963193]
[1749144676592,30.8333,2571.1,2571.0,3.88946846]
[1749144676794,30.0,2571.0,2570.9,3.88962064]
[1749144678491,6.561,2571.0,2570.9,3.88962064]
[1749144678692,0.8333,2571.1,2571.0,3.88953714]
[1749144678892,4.0,2571.1,2571.0,6.09343033]
[1749144679194,6.561,2571.1,2571.0,6.09343033]
[1749144680095,6.561,2571.1,2571.0,3.88953714]
[1749144680296,37.3175,2571.1,2571.0,3.88953714]
[1749144681305,30.0,2571.0,2570.8,3.88981829]
[1749144681509,30.0,2571.0,2570.4,0.487]
[1749144681510,14.49229882,2570.9,2570.4,3.89034851]
[1749144681704,14.49229882,2570.9,2570.1,0.507]
[1749144681705,30.0,2570.7,2570.1,3.91087579]
[1749144681908,30.0,2570.7,2570.6,3.89014237]
[1749144682145,30.0,2570.7,2570.5,3.89023159]
[1749144682321,10.46191672,2570.8,2570.4,3.89032158]
[1749144682322,40.0,2570.5,2570.4,3.89032158]
[1749144682546,40.0,2570.5,2570.3,3.89058586]
[1749144682547,30.0,2570.4,2570.3,3.89058586]
[1749144683303,30.0,2570.4,2570.1,3.91084071]
[1749144683304,0.8081,2570.3,2570.2,3.89072015]
[1749144683612,30.8081,2570.3,2570.2,3.89072015]
[1749144683819,31.54005,2570.3,2570.2,3.89072015]
[1749144684135,30.0,2570.2,2570.1,0.02]
[1749144684441,36.561,2570.2,2570.1,0.02]
[1749144684738,36.561,2570.2,2570.1,3.91089918]
[1749144685106,36.561,2570.2,2570.1,0.02]
[1749144685306,40.371105,2570.2,2570.1,0.02]
[1749144685537,44.371105,2570.2,2570.1,0.02]
[1749144685751,54.17823607,2570.2,2570.1,0.02]
[1749144686149,58.84318387,2570.2,2570.1,0.02]
[1749144687730,54.95243607,2570.2,2570.1,0.02]
[1749144687949,48.39143607,2570.2,2570.1,0.02]
[1749144688162,46.915305,2570.2,2570.1,0.02]
[1749144688340,50.8060528,2570.2,2570.1,0.02]
[1749144689456,67.17640811,2570.2,2570.1,0.02]
[1749144691721,67.17640811,2570.2,2569.4,3.89192342]
[1749144691722,0.7505,2569.6,2569.1,3.9123168]
[1749144691920,30.0,2569.2,2569.1,3.91241368]
[1749144692721,30.0,2569.4,2569.3,3.89211069]
[1749144693022,34.0,2569.4,2569.1,3.91235292]
[1749144693335,34.0,2569.4,2569.3,3.89211069]
[1749144693939,30.0,2569.3,2569.2,3.89226218]
[1749144694138,30.0,2569.2,2569.1,3.9123195]
[1749144694339,36.56,2569.2,2569.1,3.9123195]
[1749144695131,40.46091672,2569.2,2569.1,3.9123195]
[1749144695328,40.46091672,2569.2,2569.1,0.02]
[1749144695533,49.1592789,2569.2,2569.1,0.02]
[1749144695957,45.26701672,2569.2,2569.1,0.02]
[1749144696523,49.1592789,2569.2,2569.1,0.02]
[1749144697473,30.0,2569.2,2569.1,3.91241368]
[1749144697658,7.9,2569.5,2569.3,4.37911069]
[1749144697861,4.50709645,2570.6,2569.1,0.57]
[1749144697862,36.56,2569.4,2569.1,0.57]
[1749144698070,2.5585,2570.2,2569.2,16.0]
[1749144698071,6.56,2569.3,2569.2,16.0]
[1749144698261,6.56,2569.3,2569.2,20.44226218]
[1749144698860,9.80713107,2570.1,2570.0,3.89105058]
[1749144699035,41.65743172,2570.1,2569.9,3.89112107]
[1749144699368,30.0,2570.0,2569.2,1.037]
[1749144699737,30.0,2570.0,2569.7,3.89149116]
[1749144700285,40.0,2569.8,2569.6,3.8915879]
[1749144700578,36.56,2569.7,2569.6,3.8915879]
[1749144700775,30.0,2569.8,2569.7,3.89150484]
[1749144700977,36.56,2569.8,2569.7,3.89150484]
[1749144701182,30.0,2569.8,2569.7,3.89150484]
[1749144701340,10.56,2569.8,2569.7,3.89150484]
[1749144701545,4.0,2569.8,2569.7,3.89150484]
[1749144701784,10.56,2569.8,2569.7,3.89150484]
[1749144702378,6.56,2569.8,2569.7,3.89150484]
[1749144704878,30.0,2570.1,2569.9,3.89120199]
[1749144705083,30.0,2570.1,2570.0,3.89105058]
[1749144705289,36.559,2570.1,2570.0,3.89105058]
[1749144706682,30.0,2570.1,2570.0,3.89105058]
[1749144706983,3.5556001,2570.7,2570.6,3.89014237]
[1749144707147,3.5556001,2570.7,2570.4,3.89035155]
[1749144707148,30.0,2570.6,2570.4,3.89035155]
[1749144707669,30.0,2570.6,2570.5,3.89029371]
[1749144707870,36.558,2570.6,2570.5,3.89029371]
[1749144708067,36.558,2570.6,2570.4,3.8903716]
[1749144708276,36.558,2570.6,2570.5,3.89029371]
[1749144709787,36.558,2570.6,2570.3,3.89046678]
[1749144709989,30.0,2570.5,2570.4,3.89044506]
[1749144710171,36.557,2570.5,2570.4,3.89044506]
[1749144710955,40.45791672,2570.5,2570.1,3.89080789]
[1749144711155,40.45791672,2570.5,2570.0,0.487]
[1749144711156,30.0,2570.4,2570.2,3.89069389]
[1749144711352,30.0,2570.4,2570.3,3.89059642]
[1749144711556,33.90091672,2570.4,2570.3,3.89059642]
[1749144712065,30.0,2570.4,2570.3,3.89059642]
[1749144715206,30.0,2570.5,2570.4,3.89044506]
[1749144715373,36.555,2570.5,2570.4,3.89044506]
[1749144715694,30.0,2570.6,2570.5,3.89029371]
[1749144715885,36.555,2570.6,2570.5,3.89029371]
[1749144717602,2.7513001,2570.7,2570.6,3.89014237]
[1749144717804,30.0,2571.0,2570.9,3.88968843]
[1749144718100,36.554,2571.0,2570.9,3.88968843]
[1749144718399,30.0,2571.0,2570.9,3.88968843]
[1749144718571,8.8680578,2571.7,2570.9,3.88968843]
[1749144718572,30.0,2571.5,2571.4,3.88893209]
[1749144719200,36.554,2571.5,2571.4,3.88893209]
[1749144721212,36.553,2571.5,2571.4,3.88893209]
[1749144721501,30.0,2571.7,2571.6,3.88862964]
[1749144721700,36.553,2571.7,2571.6,3.88862964]
[1749144722931,30.70899226,2571.8,2571.7,3.88847843]
[1749144723067,30.0,2571.8,2571.7,3.88847843]
[1749144723267,30.0,2571.8,2571.7,4.92547843]
[1749144723681,0.02,2571.9,2571.8,4.43832724]
[1749144724012,6.572,2571.9,2571.8,3.88832724]
[1749144725084,6.57,2571.9,2571.8,3.88832724]
[1749144726536,0.02,2571.9,2571.8,4.43832724]
[1749144726677,0.02,2571.9,2571.8,5.31970781]
[1749144726883,6.57,2571.9,2571.8,5.80670781]
[1749144727124,0.02,2571.9,2571.8,21.80670781]
[1749144727418,6.57,2571.9,2571.8,21.80670781]
[1749144729738,0.02,2571.9,2571.8,21.80670781]
[1749144729897,6.568,2571.9,2571.8,21.80670781]
[1749144731591,6.567,2571.9,2571.8,21.80670781]
[1749144731797,0.02,2571.9,2571.8,21.80670781]
[1749144732840,0.02,2571.9,2571.8,31.61383888]
[1749144733153,0.02,2572.9,2572.8,3.88681592]
[1749144733296,0.02,2572.9,2572.8,4.92381592]
[1749144733498,0.02,2572.9,2572.8,20.92381592]
[1749144734790,0.02,2572.9,2572.8,22.68881592]
[1749144734899,6.565,2572.9,2572.8,23.07485117]
[1749144735099,6.565,2572.9,2572.8,25.7710306]
[1749144736069,6.565,2572.9,2572.8,24.0060306]
[1749144736282,6.565,2572.9,2572.8,25.7710306]
[1749144736422,6.565,2572.9,2572.8,23.61999535]
[1749144737121,6.565,2572.9,2572.8,3.88681592]
[1749144737520,0.02,2572.9,2572.8,3.88681592]
[1749144737751,0.02,2572.9,2572.8,4.43681592]
[1749144738055,6.563,2572.9,2572.8,4.43681592]
[1749144738575,0.02,2572.9,2572.8,4.43681592]
[1749144738728,6.563,2572.9,2572.8,5.70264469]
[1749144738921,6.563,2572.9,2572.8,21.70264469]
[1749144742638,0.02,2572.9,2572.8,21.70264469]
[1749144742927,0.02,2572.9,2572.8,22.18964469]
[1749144745217,5.0,2573.3,2573.2,4.43621172]
[1749144745521,0.02,2573.9,2573.8,3.88530577]
[1749144745703,0.02,2573.9,2573.8,20.92230577]
[1749144746289,0.02,2573.9,2573.8,20.43530577]
[1749144746590,6.56,2573.9,2573.8,20.43530577]
[1749144747210,6.559,2573.9,2573.8,20.43530577]
[1749144747519,6.559,2573.9,2573.8,23.0920794]
[1749144750130,36.559,2573.9,2573.8,3.88530577]
[1749144750531,30.8177,2573.8,2572.9,0.487]
[1749144750687,30.0,2573.7,2573.5,3.88561868]
[1749144751022,30.0,2573.7,2573.3,3.88601082]
[1749144751023,40.0,2573.4,2573.3,3.88601082]
[1749144751222,30.0,2573.3,2573.2,3.88613047]
[1749144754989,6.536,2573.3,2573.2,4.43613047]
[1749144755331,10.8177,2573.5,2573.4,3.88590969]
[1749144755531,40.22436011,2573.5,2573.4,3.88590969]
[1749144756000,30.0,2573.4,2573.2,3.88607203]
[1749144756713,30.0,2573.4,2573.3,3.8860607]
[1749144756886,30.36201211,2573.4,2573.3,19.8860607]
[1749144757089,34.26292883,2573.4,2573.3,19.8860607]
[1749144757288,34.262931,2573.4,2573.3,19.8860607]
[1749144757591,33.90091672,2573.4,2573.3,19.8860607]
[1749144758599,40.43691672,2573.4,2573.3,19.8860607]
[1749144758798,30.8176,2573.3,2572.9,3.88660218]
[1749144758994,30.0,2573.1,2573.0,3.88651379]
[1749144759211,36.89890952,2573.1,2573.0,3.88651379]
[1749144759409,30.0,2573.1,2573.0,3.88651379]
[1749144759731,30.8176,2573.6,2572.8,0.487]
[1749144759893,30.0,2573.4,2573.3,3.8859763]
[1749144760315,0.36289581,2573.4,2573.3,3.8859763]
[1749144760506,10.36289581,2573.4,2573.3,3.8859763]
[1749144760908,6.536,2573.5,2573.4,3.88590969]
[1749144760909,40.0,2573.5,2573.4,3.88590969]
[1749144761111,36.90616177,2573.5,2573.4,3.88590969]
[1749144761743,40.80707849,2573.5,2573.3,3.88598261]
[1749144761926,40.80707849,2573.5,2573.1,3.88634325]
[1749144761927,40.0,2573.2,2573.1,3.88634325]
[1749144762130,30.0,2573.1,2572.9,3.88654379]
[1749144762330,30.0,2573.1,2571.9,0.51]
[1749144762331,0.8176,2572.9,2572.3,3.88752443]
[1749144762531,30.0,2572.7,2572.6,3.88696801]
[1749144762732,0.8176,2572.9,2572.8,3.88681592]
[1749144762950,38.08770168,2572.9,2572.8,3.88681592]
[1749144763159,37.3526,2572.9,2572.8,3.88681592]
[1749144763651,37.71615572,2572.9,2572.8,3.88681592]